bitfinex-derivatives/quotes_BTCF0:USTF0_20240923
["timestamp","ask_amount","ask_price","bid_price","bid_amount"]
[1727129379292,0.2671498,63251.0,63248.0,0.079049]
[1727129379590,0.2671498,63251.0,63250.0,0.3608]
[1727129379591,0.3461958,63251.0,63250.0,0.3608]
[1727129380285,0.2646958,63251.0,63250.0,0.439847]
[1727129381388,0.2696958,63251.0,63250.0,0.439847]
[1727129381985,0.2716958,63251.0,63250.0,0.439847]
[1727129382279,0.2786958,63251.0,63250.0,0.439847]
[1727129382486,0.2786958,63251.0,63250.0,0.48714264]
[1727129382699,0.2796958,63251.0,63250.0,0.48714264]
[1727129383185,0.2786958,63251.0,63250.0,0.48713774]
[1727129383495,0.2716958,63251.0,63250.0,0.4871312]
[1727129383688,0.2796958,63251.0,63250.0,0.4871312]
[1727129384090,0.2796958,63251.0,63250.0,0.48712891]
[1727129384298,0.2716958,63251.0,63250.0,0.48712891]
[1727129384595,0.2786958,63251.0,63250.0,0.48712891]
[1727129384995,0.2796958,63251.0,63250.0,0.439847]
[1727129385618,0.2786958,63251.0,63250.0,0.439847]
[1727129386294,0.00112001,63257.0,63256.0,0.079039]
[1727129386489,0.0783501,63272.0,63258.0,0.079037]
[1727129386490,0.1699,63266.0,63258.0,0.079037]
[1727129386795,0.01654169,63264.0,63258.0,0.079037]
[1727129388196,0.079032,63262.0,63258.0,0.079037]
[1727129388396,0.014,63259.0,63258.0,0.079037]
[1727129390603,0.014,63262.0,63261.0,0.079033]
[1727129390800,0.014,63262.0,63261.0,0.239033]
[1727129391305,0.18679017,63266.0,63263.0,0.079031]
[1727129391604,0.26581717,63266.0,63265.0,0.079028]
[1727129392396,0.27981717,63266.0,63265.0,0.079028]
[1727129393293,0.20079017,63266.0,63265.0,0.239028]
[1727129393493,0.03089017,63266.0,63265.0,0.239028]
[1727129393693,0.014,63266.0,63265.0,0.239028]
[1727129394097,0.028,63266.0,63265.0,0.239028]
[1727129399404,0.025,63266.0,63265.0,0.239028]
[1727129400393,0.023,63266.0,63265.0,0.239028]
[1727129400596,0.102027,63266.0,63265.0,0.079028]
[1727129401104,0.090027,63266.0,63265.0,0.079028]
[1727129401791,0.079027,63266.0,63265.0,0.080028]
[1727129402403,0.079029,63264.0,63263.0,0.3608]
[1727129403293,0.158058,63264.0,63263.0,0.3608]
[1727129403501,0.164,63266.0,63252.0,0.00237144]
[1727129403502,0.3608,63265.0,63252.0,0.00237144]
[1727129403697,0.079039,63257.0,63254.0,0.079042]
[1727129403995,0.0875,63256.0,63254.0,0.079042]
[1727129404605,0.001,63264.0,63252.0,0.16237144]
[1727129404805,0.0891,63264.0,63263.0,0.079031]
[1727129405211,0.0971,63264.0,63263.0,0.080031]
[1727129405618,0.079032,63263.0,63259.0,0.079035]
[1727129405910,0.079032,63263.0,63260.0,0.079034]
[1727129406700,0.166632,63263.0,63260.0,0.079034]
[1727129407216,0.173632,63263.0,63260.0,0.079034]
[1727129407418,0.0946,63263.0,63258.0,0.3608]
[1727129407713,0.079036,63260.0,63258.0,0.3608]
[1727129408714,0.086,63262.0,63260.0,0.079034]
[1727129409415,0.165032,63262.0,63260.0,0.079034]
[1727129409711,0.086,63262.0,63252.0,0.00237144]
[1727129409916,0.086,63262.0,63254.0,0.079042]
[1727129409917,0.07904,63256.0,63254.0,0.079042]
[1727129410104,0.1643501,63262.0,63254.0,0.079042]
[1727129410105,0.079041,63255.0,63254.0,0.079042]
[1727129410411,0.079043,63254.0,63252.0,0.00237144]
[1727129410909,0.079043,63253.0,63252.0,0.00337144]
[1727129412420,0.079043,63253.0,63252.0,0.00237144]
[1727129412714,0.083043,63253.0,63252.0,0.00237144]
[1727129413220,0.088043,63253.0,63252.0,0.00237144]
[1727129414026,0.10448703,63253.0,63252.0,0.06545977]
[1727129414720,0.10448703,63253.0,63252.0,0.00237144]
[1727129415312,0.10548703,63253.0,63252.0,0.00237144]
[1727129415617,0.10648703,63253.0,63252.0,0.00337144]
[1727129415921,0.10048703,63253.0,63252.0,0.00337144]
[1727129416116,0.10848703,63253.0,63252.0,0.00337144]
[1727129416324,0.10348703,63253.0,63252.0,0.00237144]
[1727129416519,0.11048703,63253.0,63252.0,0.00337144]
[1727129417334,0.11048703,63253.0,63252.0,0.0506876]
[1727129417722,0.11048703,63253.0,63252.0,0.00337144]
[1727129417929,0.10348703,63253.0,63252.0,0.00237144]
[1727129418117,0.11048703,63253.0,63252.0,0.00337144]
[1727129418612,0.11048703,63253.0,63252.0,0.05066985]
[1727129421420,0.11048703,63253.0,63252.0,0.00337144]
[1727129422712,0.11048703,63253.0,63252.0,0.001]
[1727129426422,0.11048703,63253.0,63252.0,0.080044]
[1727129428431,0.03144403,63253.0,63252.0,0.080044]
[1727129433330,0.03144403,63253.0,63252.0,0.633368]
[1727129433633,0.0037,63262.0,63261.0,0.079033]
[1727129433829,0.0037,63262.0,63254.0,0.079042]
[1727129433830,0.439829,63265.0,63263.0,0.079031]
[1727129434025,0.10433897,63264.0,63263.0,0.079031]
[1727129435025,0.11833897,63264.0,63263.0,0.079031]
[1727129435231,0.13233897,63264.0,63263.0,0.080031]
[1727129435533,0.13233897,63264.0,63263.0,0.12737358]
[1727129436327,0.21136797,63264.0,63263.0,0.12737358]
[1727129436556,0.13233897,63264.0,63263.0,0.12737358]
[1727129436735,0.11833897,63264.0,63263.0,0.12637358]
[1727129436926,0.12333897,63264.0,63263.0,0.12737358]
[1727129437535,0.12333897,63264.0,63263.0,0.080031]
[1727129437835,0.11433897,63264.0,63263.0,0.080031]
[1727129438228,0.10933897,63264.0,63263.0,0.079031]
[1727129438534,0.02623897,63264.0,63263.0,0.14315472]
[1727129438737,0.01,63264.0,63263.0,0.080031]
[1727129439237,0.01,63264.0,63263.0,0.26139918]
[1727129439543,0.01,63264.0,63263.0,0.15895754]
[1727129439777,0.01,63264.0,63263.0,0.18244336]
[1727129440330,0.01,63264.0,63263.0,0.080031]
[1727129441745,0.07840237,63269.0,63263.0,0.080031]
[1727129441746,0.07840237,63270.0,63269.0,0.079023]
[1727129442037,0.07840237,63271.0,63270.0,0.079022]
[1727129442238,0.07840237,63271.0,63270.0,0.160222]
[1727129442433,0.00237144,63272.0,63271.0,0.079021]
[1727129442832,0.00237144,63272.0,63271.0,0.553181]
[1727129443240,0.07840237,63273.0,63272.0,0.079019]
[1727129443541,0.07840237,63274.0,63272.0,0.16]
[1727129443743,0.07840237,63275.0,63272.0,0.16]
[1727129444038,0.07840237,63277.0,63276.0,0.079014]
[1727129444354,0.07840237,63282.0,63276.0,0.5208]
[1727129444640,0.07840237,63288.0,63287.0,0.079001]
[1727129444837,0.07840237,63289.0,63288.0,0.078999]
[1727129445441,0.07840237,63293.0,63292.0,0.078994]
[1727129445640,0.07840237,63294.0,63292.0,0.238994]
[1727129446259,0.07840237,63295.0,63292.0,0.238994]
[1727129446442,0.17366675,63297.0,63292.0,0.238994]
[1727129446827,0.09526438,63297.0,63292.0,0.238994]
[1727129447140,0.09526438,63297.0,63293.0,0.078993]
[1727129447326,0.09526438,63297.0,63295.0,0.07899]
[1727129448045,0.10926438,63297.0,63295.0,0.07899]
[1727129448431,0.03027538,63297.0,63296.0,0.078989]
[1727129448636,0.03027538,63297.0,63296.0,0.238989]
[1727129448837,0.04127538,63297.0,63296.0,0.238989]
[1727129450342,0.04127538,63297.0,63296.0,0.239989]
[1727129451240,0.04127538,63297.0,63296.0,0.079989]
[1727129452137,0.04127538,63297.0,63296.0,0.080989]
[1727129458947,0.12026338,63297.0,63296.0,0.002]
[1727129460549,0.12026338,63297.0,63285.0,0.3608]
[1727129460550,1.11523538,63297.0,63285.0,0.3608]
[1727129460752,0.079002,63286.0,63285.0,0.439803]
[1727129461756,0.079002,63286.0,63285.0,0.080003]
[1727129462146,0.079002,63286.0,63285.0,0.081003]
[1727129462743,0.090002,63286.0,63285.0,0.081003]
[1727129463663,0.103002,63286.0,63285.0,0.081003]
[1727129463843,0.103002,63286.0,63285.0,0.241003]
[1727129464744,0.024,63286.0,63285.0,0.241003]
[1727129464950,0.024,63286.0,63285.0,0.601803]
[1727129471355,0.024,63286.0,63285.0,0.66494306]
[1727129472360,0.024,63286.0,63285.0,0.601803]
[1727129478263,0.04961254,63286.0,63285.0,0.601803]
[1727129482386,0.04961254,63286.0,63285.0,0.551803]
[1727129484379,0.12861454,63286.0,63285.0,0.551803]
[1727129484593,0.22269738,63286.0,63285.0,0.551803]
[1727129485385,0.103002,63286.0,63285.0,0.551803]
[1727129488292,0.103002,63286.0,63285.0,0.191003]
[1727129491580,0.103002,63286.0,63285.0,0.21570499]
[1727129493290,0.12861549,63286.0,63285.0,0.21570499]
[1727129494593,0.12861549,63286.0,63285.0,0.191003]
[1727129494786,0.12861549,63286.0,63285.0,0.21570496]
[1727129495181,0.12861549,63286.0,63285.0,0.02670196]
[1727129495386,0.60928001,63286.0,63285.0,0.002]
[1727129497198,0.53027801,63286.0,63285.0,0.112]
[1727129497399,0.53007565,63286.0,63285.0,0.112]
[1727129498896,0.0496155,63286.0,63285.0,0.191003]
[1727129499089,0.0496155,63286.0,63285.0,0.21570581]
[1727129500503,0.024,63286.0,63285.0,0.31719476]
[1727129500997,0.024,63286.0,63285.0,0.31719229]
[1727129506602,0.024,63286.0,63285.0,0.3567121]
[1727129507424,0.024,63286.0,63285.0,0.29249195]
[1727129507706,0.024,63286.0,63285.0,0.3567119]
[1727129507905,0.024,63286.0,63285.0,0.29249195]
[1727129508102,0.024,63286.0,63285.0,0.3567119]
[1727129508696,0.024,63286.0,63285.0,0.33417116]
[1727129508902,0.024,63286.0,63285.0,0.43570629]
[1727129510700,0.024,63286.0,63285.0,0.33417116]
[1727129511091,0.103002,63286.0,63285.0,0.02669998]
[1727129511596,0.103002,63286.0,63285.0,0.002]
[1727129513709,0.103002,63286.0,63285.0,0.081003]
[1727129515406,0.14365075,63286.0,63285.0,0.081003]
[1727129515609,0.16926512,63286.0,63285.0,0.081003]
[1727129519503,0.04961437,63286.0,63285.0,0.10570442]
[1727129519710,0.04961437,63286.0,63285.0,0.50602566]
[1727129519912,0.10255948,63286.0,63285.0,0.50602566]
[1727129520208,0.024,63286.0,63285.0,0.50602566]
[1727129520427,0.024,63286.0,63285.0,0.441803]
[1727129520711,0.024,63286.0,63285.0,0.50601996]
[1727129521310,0.10976332,63303.0,63295.0,0.078991]
[1727129521517,0.0783,63304.0,63295.0,0.53501307]
[1727129521702,0.02560739,63303.0,63300.0,0.11]
[1727129521903,0.37906182,63305.0,63302.0,0.11]
[1727129522105,0.15727,63312.0,63310.0,0.078972]
[1727129522106,0.0783,63312.0,63310.0,0.078972]
[1727129522398,0.0783,63312.0,63310.0,0.549772]
[1727129522399,0.0256038,63311.0,63310.0,0.549772]
[1727129523311,0.0836,63314.0,63310.0,0.549772]
[1727129523516,0.0836,63314.0,63313.0,0.11]
[1727129524110,0.10242292,63314.0,63313.0,0.11]
[1727129525015,0.10342292,63314.0,63313.0,0.111]
[1727129525802,0.10342292,63314.0,63313.0,0.112]
[1727129526309,0.01982292,63314.0,63313.0,0.112]
[1727129531811,0.38062292,63314.0,63313.0,0.112]
[1727129532014,0.09878992,63314.0,63313.0,0.002]
[1727129534520,0.68262992,63314.0,63313.0,0.002]
[1727129534907,0.20878992,63314.0,63313.0,0.002]
[1727129536416,0.28775692,63314.0,63313.0,0.002]
[1727129536631,0.28775692,63314.0,63304.0,0.3608]
[1727129536632,0.078978,63305.0,63304.0,0.3608]
[1727129536919,0.188978,63305.0,63304.0,0.3608]
[1727129537217,0.078986,63299.0,63298.0,0.188986]
[1727129538515,0.079986,63299.0,63298.0,0.188986]
[1727129539410,0.09852087,63299.0,63298.0,0.188986]
[1727129540717,0.09852087,63299.0,63293.0,0.3608]
[1727129540718,0.07899,63296.0,63295.0,0.11]
[1727129541922,0.07899,63296.0,63295.0,0.115]
[1727129542507,0.07899,63296.0,63295.0,0.113]
[1727129542712,0.07899,63296.0,63295.0,0.115]
[1727129542904,0.07899,63296.0,63295.0,0.112]
[1727129543107,0.07999,63296.0,63295.0,0.112]
[1727129543423,0.07899,63296.0,63295.0,0.112]
[1727129543722,0.08099,63296.0,63295.0,0.112]
[1727129544112,0.08299,63296.0,63295.0,0.11]
[1727129545117,0.08099,63296.0,63295.0,0.11]
[1727129545619,0.078991,63295.0,63294.0,0.0473448]
[1727129545917,0.078992,63294.0,63293.0,0.1573448]
[1727129546122,0.078992,63294.0,63293.0,0.0473448]
[1727129546311,0.078992,63294.0,63293.0,0.1573448]
[1727129546511,0.078992,63294.0,63293.0,0.11]
[1727129548631,0.081992,63294.0,63293.0,0.11]
[1727129548927,0.083992,63294.0,63293.0,0.11]
[1727129549319,0.083992,63294.0,63293.0,0.1731611]
[1727129549621,0.078993,63293.0,63292.0,0.0631611]
[1727129549822,0.078994,63292.0,63291.0,0.0631611]
[1727129550035,0.078996,63291.0,63290.0,0.1731611]
[1727129551529,0.080996,63291.0,63290.0,0.1731611]
[1727129551918,0.080996,63291.0,63290.0,0.11]
[1727129552829,0.081996,63291.0,63290.0,0.11]
[1727129553419,0.3638,63291.0,63287.0,0.0631611]
[1727129553628,0.3638,63291.0,63286.0,0.3608]
[1727129553629,0.158002,63287.0,63286.0,0.04723572]
[1727129553818,0.158004,63286.0,63285.0,0.0023698]
[1727129555124,0.158004,63286.0,63285.0,0.0063698]
[1727129556631,0.17691107,63286.0,63285.0,0.0063698]
[1727129557017,0.17691107,63286.0,63285.0,0.0093698]
[1727129562227,0.28691107,63286.0,63285.0,0.0093698]
[1727129563328,0.17691107,63286.0,63285.0,0.0093698]
[1727129564424,0.09790907,63286.0,63285.0,0.0093698]
[1727129567537,0.01890707,63286.0,63285.0,0.0883728]
[1727129567742,0.078999,63289.0,63287.0,0.079]
[1727129567973,0.078999,63289.0,63288.0,0.188999]
[1727129568541,0.078999,63289.0,63288.0,0.078999]
[1727129568941,0.078999,63289.0,63288.0,0.12625562]
[1727129569146,0.078999,63289.0,63288.0,0.12725562]
[1727129571239,0.078999,63289.0,63288.0,0.1272806]
[1727129572238,0.078999,63289.0,63288.0,0.079999]
[1727129574646,0.188999,63289.0,63288.0,0.001]
[1727129574851,0.267998,63289.0,63288.0,0.04830298]
[1727129575050,0.267998,63289.0,63288.0,0.001]
[1727129575051,0.354098,63289.0,63288.0,0.001]
[1727129575448,0.354098,63289.0,63288.0,0.04830298]
[1727129577247,0.354098,63289.0,63288.0,0.001]
[1727129580349,0.714898,63289.0,63288.0,0.001]
[1727129582349,0.714898,63289.0,63288.0,0.0641611]
[1727129582549,0.714898,63289.0,63288.0,0.001]
[1727129582749,0.714898,63289.0,63288.0,0.0641611]
[1727129592361,0.714898,63289.0,63288.0,0.001]
[1727129592563,0.628798,63289.0,63288.0,0.001]
[1727129592759,0.549799,63289.0,63288.0,0.001]
[1727129593849,0.3608,63289.0,63288.0,0.079999]
[1727129594062,0.01834914,63290.0,63289.0,0.078998]
[1727129594360,0.3608,63295.0,63289.0,0.2224453]
[1727129594657,0.3608,63295.0,63293.0,0.18896454]
[1727129594862,0.3608,63295.0,63294.0,0.078992]
[1727129596066,0.3608,63295.0,63294.0,0.18178686]
[1727129596067,0.002,63295.0,63294.0,0.18178686]
[1727129596258,0.08662001,63303.0,63297.0,0.078988]
[1727129596259,0.0037,63303.0,63297.0,0.078988]
[1727129596459,0.0037,63309.0,63297.0,0.078988]
[1727129596460,0.0037,63309.0,63302.0,0.4708]
[1727129596763,0.078971,63312.0,63308.0,0.54967729]
[1727129596764,0.082671,63312.0,63308.0,0.54967729]
[1727129596951,0.078971,63312.0,63311.0,0.11]
[1727129597151,0.01808822,63312.0,63311.0,0.188971]
[1727129597455,0.0813348,63316.0,63311.0,0.25199944]
[1727129597764,0.0813348,63316.0,63313.0,0.04727188]
[1727129597953,0.0813348,63316.0,63314.0,0.04727188]
[1727129598459,0.0813348,63316.0,63312.0,0.04727188]
[1727129598847,0.0833348,63316.0,63312.0,0.04727188]
[1727129599247,0.0833348,63316.0,63311.0,0.190971]
[1727129599248,0.0813348,63316.0,63311.0,0.189971]
[1727129599452,0.0833348,63316.0,63314.0,0.001]
[1727129599856,0.0863348,63316.0,63314.0,0.001]
[1727129600363,0.10440132,63316.0,63314.0,0.001]
[1727129600667,0.078966,63315.0,63314.0,0.001]
[1727129602463,0.078966,63315.0,63311.0,0.078971]
[1727129602663,0.081966,63315.0,63314.0,0.002]
[1727129603465,0.081966,63315.0,63314.0,0.001]
[1727129603466,0.078966,63315.0,63314.0,0.001]
[1727129603665,0.081966,63315.0,63311.0,0.080971]
[1727129604568,0.003,63315.0,63311.0,0.080971]
[1727129605170,0.081966,63315.0,63314.0,0.001]
[1727129605870,0.081966,63315.0,63314.0,0.002]
[1727129606066,0.078972,63310.0,63308.0,0.3608]
[1727129606371,0.003,63315.0,63311.0,0.001]
[1727129606372,0.11,63312.0,63311.0,0.001]
[1727129606773,0.078973,63309.0,63308.0,0.3608]
[1727129607871,0.078973,63309.0,63306.0,0.078977]
[1727129608373,0.078973,63309.0,63308.0,0.001]
[1727129608969,0.001,63309.0,63306.0,0.079977]
[1727129609173,0.078975,63308.0,63306.0,0.080977]
[1727129609670,0.078975,63308.0,63306.0,0.079977]
[1727129609879,0.078975,63308.0,63306.0,0.078977]
[1727129610973,0.078975,63308.0,63307.0,0.078976]
[1727129611572,0.082975,63308.0,63307.0,0.078976]
[1727129611775,0.083975,63308.0,63307.0,0.078976]
[1727129612176,0.005,63308.0,63307.0,0.188976]
[1727129612371,0.005,63308.0,63307.0,0.189976]
[1727129612977,0.005,63308.0,63307.0,0.190976]
[1727129613877,0.083975,63308.0,63307.0,0.190976]
[1727129616980,0.083975,63308.0,63307.0,0.080976]
[1727129617180,0.083975,63308.0,63307.0,0.002]
[1727129619591,0.078981,63303.0,63302.0,0.0008]
[1727129619784,0.078981,63303.0,63294.0,0.43944242]
[1727129619785,0.078982,63302.0,63300.0,0.12616945]
[1727129620089,0.078982,63302.0,63300.0,0.078984]
[1727129620286,0.078983,63301.0,63300.0,0.078984]
[1727129620486,0.078983,63301.0,63300.0,0.12620896]
[1727129620899,0.078983,63301.0,63300.0,0.078984]
[1727129621793,0.079983,63301.0,63300.0,0.078984]
[1727129621994,0.082983,63301.0,63300.0,0.078984]
[1727129622376,0.082983,63301.0,63300.0,0.12620896]
[1727129622791,0.10113726,63301.0,63300.0,0.12620896]
[1727129622991,0.07848465,63314.0,63311.0,4.09979074]
[1727129623191,0.18897,63312.0,63311.0,4.09979074]
[1727129623491,0.26794,63312.0,63311.0,4.09979074]
[1727129623692,0.74178,63312.0,63311.0,4.09979074]
[1727129624292,0.34642465,63312.0,63311.0,4.09979074]
[1727129624519,0.34842465,63312.0,63311.0,4.10079074]
[1727129624701,0.82226465,63312.0,63311.0,4.10079074]
[1727129624880,0.82426465,63312.0,63311.0,4.10179074]
[1727129625285,0.29754764,63312.0,63311.0,4.10179074]
[1727129626791,0.10857764,63312.0,63311.0,4.10179074]
[1727129627091,0.08297,63312.0,63311.0,4.10179074]
[1727129627789,0.08297,63312.0,63311.0,4.1490157]
[1727129630396,0.08297,63312.0,63311.0,4.10179074]
[1727129634994,0.19297,63312.0,63311.0,4.46259074]
[1727129635798,0.21857586,63312.0,63311.0,4.46259074]
[1727129638808,0.25876792,63312.0,63311.0,4.46259074]
[1727129639301,0.21857586,63312.0,63311.0,4.46259074]
[1727129639502,0.25877852,63312.0,63311.0,4.46259074]
[1727129639702,0.25877852,63312.0,63311.0,3.97578723]
[1727129639703,1.41150541,63312.0,63311.0,3.97578723]
[1727129640500,1.52138392,63312.0,63311.0,3.97578723]
[1727129640899,1.5212435,63312.0,63311.0,3.97578723]
[1727129641604,1.41136499,63312.0,63311.0,3.97578723]
[1727129641912,1.5212435,63312.0,63311.0,3.97578723]
[1727129642809,1.37138809,63312.0,63311.0,3.97578723]
[1727129643707,0.10857809,63312.0,63311.0,3.97578723]
[1727129644009,0.27162799,63312.0,63311.0,3.97578723]
[1727129644203,0.19297,63312.0,63311.0,3.97578723]
[1727129644903,0.27194,63312.0,63311.0,3.97578723]
[1727129645100,0.19297,63312.0,63311.0,3.97578723]
[1727129645801,0.27162799,63312.0,63311.0,3.97578723]
[1727129646003,0.08297,63312.0,63311.0,3.97578723]
[1727129646303,0.08297,63312.0,63311.0,4.33658723]
[1727129648203,0.08297,63312.0,63311.0,4.39950117]
[1727129649806,0.08297,63312.0,63311.0,4.03870117]
[1727129650009,0.08297,63312.0,63311.0,4.39950117]
[1727129651003,0.08297,63312.0,63311.0,4.38394372]
[1727129651907,0.08297,63312.0,63311.0,4.38394338]
[1727129652108,0.08297,63312.0,63311.0,4.0231434]
[1727129652496,0.08297,63312.0,63311.0,3.97578723]
[1727129656611,0.08297,63312.0,63311.0,4.0231434]
[1727129657203,0.08297,63312.0,63311.0,3.97578723]
[1727129657511,0.08297,63312.0,63311.0,4.0231434]
[1727129657714,0.08297,63312.0,63311.0,3.97578723]
[1727129657904,0.10857635,63312.0,63311.0,3.97578723]
[1727129661915,0.17738893,63312.0,63311.0,3.97578723]
[1727129662104,0.20299528,63312.0,63311.0,3.97578723]
[1727129662410,0.10857635,63312.0,63311.0,3.97578723]
[1727129664613,0.10857635,63312.0,63311.0,4.05475823]
[1727129665309,0.02960635,63312.0,63311.0,4.05475823]
[1727129665619,0.0826726,63312.0,63311.0,4.16475823]
[1727129665806,0.004,63312.0,63311.0,4.16475823]
[1727129666114,0.004,63312.0,63311.0,4.24340065]
[1727129666512,0.004,63312.0,63311.0,4.16475823]
[1727129667804,0.004,63312.0,63311.0,4.24340065]
[1727129668207,0.004,63312.0,63311.0,4.16475823]
[1727129668616,0.004,63312.0,63311.0,4.34507789]
[1727129668812,0.004,63312.0,63311.0,4.34502551]
[1727129669211,0.004,63312.0,63311.0,4.26638309]
[1727129669411,0.078957,63322.0,63313.0,0.078968]
[1727129669616,0.078957,63322.0,63321.0,0.078958]
[1727129669913,0.10164214,63322.0,63321.0,0.078958]
[1727129670306,0.10164214,63322.0,63321.0,0.159858]
[1727129671913,0.10164214,63322.0,63321.0,0.078958]
[1727129672115,0.10164214,63322.0,63321.0,0.440758]
[1727129672416,0.10164214,63322.0,63321.0,0.4090904]
[1727129672807,0.10164214,63322.0,63321.0,0.4100904]
[1727129673120,0.10164214,63322.0,63321.0,0.3628]
[1727129673420,0.12724304,63322.0,63321.0,0.3628]
[1727129673617,0.10164214,63322.0,63321.0,0.3628]
[1727129676114,0.12724302,63322.0,63321.0,0.3628]
[1727129676316,0.10164214,63322.0,63321.0,0.3628]
[1727129677818,0.18030251,63322.0,63321.0,0.3628]
[1727129678323,0.10164214,63322.0,63321.0,0.3628]
[1727129679512,0.18029906,63322.0,63321.0,0.3628]
[1727129681110,0.10164214,63322.0,63321.0,0.3628]
[1727129687522,0.10164214,63322.0,63321.0,0.002]
[1727129690522,0.10164214,63322.0,63321.0,0.0492904]
[1727129693034,0.10164214,63322.0,63321.0,0.002]
[1727129695336,0.18059914,63322.0,63321.0,0.002]
[1727129695645,0.18059914,63322.0,63321.0,0.04936893]
[1727129695939,0.18059914,63322.0,63321.0,0.002]
[1727129696141,0.24702304,63322.0,63321.0,0.002]
[1727129696938,0.33362304,63322.0,63321.0,0.002]
[1727129701539,0.24702304,63322.0,63321.0,0.002]
[1727129701742,0.16806604,63322.0,63321.0,0.002]
[1727129702034,0.22175891,63322.0,63321.0,0.002]
[1727129702434,0.12724552,63322.0,63321.0,0.002]
[1727129702633,0.22175891,63322.0,63321.0,0.002]
[1727129703041,0.33175891,63322.0,63321.0,0.002]
[1727129703244,0.29059914,63322.0,63321.0,0.06508685]
[1727129703432,0.29059914,63322.0,63321.0,0.002]
[1727129704641,0.29059914,63322.0,63321.0,0.04936431]
[1727129711253,0.31620213,63322.0,63321.0,0.002]
[1727129711838,0.12724513,63322.0,63321.0,0.002]
[1727129715259,0.12724468,63322.0,63321.0,0.002]
[1727129718158,0.10164214,63322.0,63321.0,0.002]
[1727129725361,0.10164214,63322.0,63321.0,0.06508685]
[1727129725559,0.10164214,63322.0,63321.0,0.002]
[1727129725862,0.10164214,63322.0,63321.0,0.080958]
[1727129725863,0.02268514,63322.0,63321.0,0.080958]
[1727129726048,0.078956,63323.0,63321.0,0.15981656]
[1727129726366,0.15772678,63323.0,63322.0,0.40816051]
[1727129727162,0.15772678,63323.0,63322.0,0.3608]
[1727129727561,0.10455556,63323.0,63322.0,0.3608]
[1727129727958,0.10455556,63323.0,63322.0,0.3628]
[1727129729063,0.10455556,63323.0,63322.0,0.441757]
[1727129729258,0.15770788,63323.0,63322.0,0.441757]
[1727129730263,0.078956,63323.0,63322.0,0.441757]
[1727129730964,0.15770788,63323.0,63322.0,0.441757]
[1727129731166,0.078956,63323.0,63322.0,0.441757]
[1727129731362,0.02874728,63325.0,63324.0,0.078955]
[1727129731363,0.10749916,63325.0,63324.0,0.078955]
[1727129731559,0.02874728,63325.0,63324.0,0.078955]
[1727129731763,0.26770488,63326.0,63324.0,0.078955]
[1727129732069,0.07875188,63325.0,63324.0,0.078955]
[1727129732458,0.07875188,63325.0,63324.0,0.079955]
[1727129732653,0.07875188,63325.0,63324.0,0.080955]
[1727129732961,0.15770488,63325.0,63324.0,0.079955]
[1727129733167,0.15770488,63325.0,63324.0,0.080955]
[1727129733369,0.078953,63325.0,63324.0,0.080955]
[1727129733570,0.078953,63325.0,63324.0,0.079955]
[1727129733869,0.078953,63325.0,63324.0,0.080955]
[1727129734259,0.078953,63325.0,63324.0,0.441755]
[1727129734456,0.078953,63325.0,63324.0,0.14405564]
[1727129734961,0.078953,63325.0,63324.0,0.080955]
[1727129735153,0.078953,63325.0,63324.0,0.002]
[1727129735668,0.157906,63325.0,63324.0,0.002]
[1727129735856,0.31685788,63325.0,63324.0,0.002]
[1727129740273,0.26370881,63325.0,63324.0,0.002]
[1727129742759,0.18475581,63325.0,63324.0,0.002]
[1727129743565,0.18475579,63325.0,63324.0,0.002]
[1727129746773,0.1847558,63325.0,63324.0,0.002]
[1727129748472,0.22567992,63325.0,63324.0,0.002]
[1727129749067,0.14547992,63325.0,63324.0,0.002]
[1727129753467,0.14549086,63325.0,63324.0,0.002]
[1727129755193,0.25536937,63325.0,63324.0,0.002]
[1727129755481,0.078953,63325.0,63324.0,0.002]
[1727129760276,0.3900729,63326.0,63324.0,0.002]
[1727129760480,0.38895289,63326.0,63325.0,0.078953]
[1727129760676,0.46790489,63326.0,63325.0,0.078953]
[1727129761578,0.46790489,63326.0,63324.0,0.002]
[1727129761781,0.57790489,63326.0,63325.0,0.001]
[1727129762997,0.57790489,63326.0,63325.0,0.002]
[1727129763489,0.64466446,63326.0,63325.0,0.002]
[1727129764490,0.56571246,63326.0,63316.0,0.4355]
[1727129764693,0.07897,63312.0,63311.0,3.97840723]
[1727129764890,0.25572957,63312.0,63311.0,3.956688]
[1727129765094,0.25572957,63312.0,63311.0,3.00159583]
[1727129765095,1.81605661,63312.0,63311.0,3.00159583]
[1727129765390,1.8159376,63312.0,63311.0,2.91256854]
[1727129765591,1.8159376,63312.0,63311.0,2.88056854]
[1727129765978,1.8159376,63312.0,63311.0,2.88156854]
[1727129766295,1.8792938,63312.0,63311.0,2.88156854]
[1727129766486,1.8792938,63312.0,63311.0,2.88056854]
[1727129766691,1.8792938,63312.0,63311.0,2.88156854]
[1727129767191,1.76933957,63312.0,63311.0,2.88156854]
[1727129767779,1.79736743,63312.0,63311.0,2.88156854]
[1727129767983,1.7962742,63312.0,63311.0,2.88156854]
[1727129768183,1.8102742,63312.0,63311.0,2.88256854]
[1727129769290,1.8102742,63312.0,63311.0,2.41868954]
[1727129769291,1.77022003,63312.0,63311.0,2.41868954]
[1727129770501,1.74460786,63312.0,63311.0,2.41868954]
[1727129780406,1.8230693,63312.0,63311.0,2.41868954]
[1727129781609,1.74460786,63312.0,63311.0,2.41868954]
[1727129781912,1.8230693,63312.0,63311.0,2.41868954]
[1727129782603,1.2230693,63312.0,63311.0,2.41868954]
[1727129782911,1.14460786,63312.0,63311.0,2.41868954]
[1727129783411,1.22357786,63312.0,63311.0,2.35038954]
[1727129783595,1.82357786,63312.0,63311.0,2.35038954]
[1727129784294,1.9020393,63312.0,63311.0,2.35038954]
[1727129784698,0.59179786,63312.0,63311.0,2.35038954]
[1727129785501,0.61740711,63312.0,63311.0,2.35038954]
[1727129789311,0.65786581,63312.0,63311.0,2.35038954]
[1727129789709,0.65786828,63312.0,63311.0,2.35038954]
[1727129793418,0.76782251,63312.0,63311.0,2.35038954]